Cogmind - Beta 14 *** ADVENTURER MODE // 2024.10.26 @ 10:01:32 Player: Elmgren Result: Destroyed by G-47 Trooper with Particle Gun Performance ------------- Evolutions (2) 1000 Regions Visited (5) 1000 Robots Destroyed (13) 65 Value Destroyed (384) 384 Prototype IDs (0) 0 Alien Tech Used (0) 0 Bonus (218) 218 TOTAL SCORE: 2667 Bonus ------- Follower Combat Kills 218 Cogmind --------- Core Integrity 0/550 Matter 300/300 Energy 90/100 System Corruption 2% Temperature Cool (9) Movement Core (50) Location -8/Materials Parts ------- > --- POWER (1) -------- (None) > --- PROPULSION (5) --- (None) > --- UTILITY (3) ------ (None) > --- WEAPON (2) ------- (None) > --- INVENTORY (5) ---- ECM Suite Peak State ------------ > --- POWER ------------ (None) > --- PROPULSION ------- Armored Treads Armored Treads Flight Unit Flight Unit > --- UTILITY ---------- Visual Processing Unit ECM Suite > --- WEAPON ----------- Beam Rifle Beam Rifle > --- INVENTORY -------- ECM Suite [Rating: 15] Favorites ----------- Power Ion Engine Engine Ion Engine Power Core Light Nuclear Core Propulsion Light Treads Treads Light Treads Leg Aluminum Leg Flight Unit Flight Unit Utility ECM Suite Device ECM Suite Storage Small Storage Unit Processor Visual Processing Unit Weapon Assault Rifle Energy Gun Beam Rifle Ballistic Gun Assault Rifle Special Weapon Mining Laser Special Melee Weapon Datajack Build | -11 -10 -10 -9 -9 -8 ------- Run | Yrd Mat Min Mat Min Mat Slots Evolved 4 | . . . 2 . 2 Power . | . . . . . . Propulsion 3 | . . . 2 . 1 Utility 1 | . . . . . 1 Weapon . | . . . . . . Parts Attached 25 | 6 2 2 4 3 8 Power 3 | 1 . 2 . . . Engine 2 | 1 . 1 . . . Core 1 | . . 1 . . . Reactor . | . . . . . . Propulsion 10 | 2 1 . 2 3 2 Treads 5 | 2 1 . . . 2 Leg 2 | . . . 2 . . Wheel . | . . . . . . Hover . | . . . . . . Flight 3 | . . . . 3 . Utility 3 | 1 1 . . . 1 Device 1 | . 1 . . . . Storage 1 | 1 . . . . . Processor 1 | . . . . . 1 Hackware . | . . . . . . Protection . | . . . . . . Artifact . | . . . . . . Weapon 9 | 2 . . 2 . 5 Energy Gun 4 | . . . . . 4 Energy Cannon . | . . . . . . Ballistic Gun 3 | 2 . . . . 1 Ballistic Cannon . | . . . . . . Launcher . | . . . . . . Special Weapon 1 | . . . 1 . . Impact Weapon . | . . . . . . Slashing Weapon . | . . . . . . Piercing Weapon . | . . . . . . Special Melee Weapon 1 | . . . 1 . . Unidentified Prototypes . | . . . . . . Parts Lost 16 | . . 1 3 1 11 Power 2 | . . 1 1 . . Propulsion 6 | . . . 1 1 4 Utility 2 | . . . . . 2 Weapon 6 | . . . 1 . 5 Highest Loss Streak 8 | . . 1 2 3 8 To Critical Strikes 1 | . . . . . 1 Average Slot Usage (%) 86 | . 99 98 76 35 54 Engine 6 | . 14 10 . . . Core 3 | . . 2 11 . . Treads 24 | . 28 28 21 . 14 Flight 1 | . . . . 24 9 Device 12 | . 13 14 11 11 8 Storage 11 | . 14 14 11 . . Energy Gun 1 | . . . . . 11 Ballistic Gun 19 | . 28 28 11 . 1 Special Melee Weapon 2 | . . . 10 . . Peak Build Rating 15 | 6 8 9 11 4 15 Average Rating 8 | 3 6 8 8 3 12 On Entrance 5 | . 6 8 9 4 3 Naked Turns 5 | . . . . . 5 Heaviest Build 16 | 14 16 16 16 2 10 Greatest Support 40 | 40 40 40 40 12 40 Greatest Overweight (x) 3 | . . . 1 . 3 Average Overweight (x) . | . . . . . . Largest Inventory Capacity 8 | 8 8 8 8 8 5 Average Capacity 7 | 6 8 8 8 5 5 Most Carried 8 | 2 7 8 8 8 3 Average Carried 5 | . 4 7 7 2 1 Final Capacity 8 | 8 8 8 8 5 5 Final Carried 8 | 1 7 7 8 2 1 Class Distribution -------------------- 100% | Mutant Dominant Class ---------------- Mutant | -10/Materials Mutant | -10/Mines Mutant | -9/Materials Mutant | -9/Mines Mutant | -8/Materials Resources | -11 -10 -10 -9 -9 -8 ----------- Run | Yrd Mat Min Mat Min Mat Matter Collected 570 | 233 133 62 50 25 67 Remotely . | . . . . . . Salvage Created 476 | . 285 49 . . 142 Parts 29 | . 18 8 . . 3 Haulers Intercepted . | . . . . . . Recyclers Shooed 1 | . . . 1 . . Parts Field Recycled . | . . . . . . Retrieved Matter . | . . . . . . Parts Self-Destructed . | . . . . . . Prevented . | . . . . . . Kills | -11 -10 -10 -9 -9 -8 ------- Run | Yrd Mat Min Mat Min Mat Combat Hostiles Destroyed 11 | . 5 3 . . 3 Melee 1 | . . . . . 1 Guns 10 | . 5 3 . . 2 Classes Destroyed 4 | . 3 1 . . . Worker 1 | . 1 . . . . Watcher 1 | . 1 . . . . Swarmer 3 | . . 3 . . . Grunt 8 | . 5 . . . 3 Best Kill Streak 3 | . 3 3 . . 2 Combat Bots Only 3 | . 2 3 . . 2 Max Kills in Single Turn 1 | . 1 1 . . 1 Gunslinging . | . . . . . . Exploded . | . . . . . . Melee 1 | . . . . . 1 Uniques/NPCs Destroyed . | . . . . . . Combat | -11 -10 -10 -9 -9 -8 -------- Run | Yrd Mat Min Mat Min Mat Hostile Shots Fired 315 | . 18 18 69 10 200 Missed 96 | . 4 7 18 4 63 Damage Taken 2374 | . 139 143 392 54 1646 Core 780 | . 34 33 129 26 558 Absorbed by Shields . | . . . . . . Ignored by Resistances 695 | . 41 44 125 17 468 Core Remaining (%) 78 | 100 . 73 . 61 . Volleys Fired 38 | . 18 5 2 . 13 Largest 2 | . 2 2 1 . 2 Hottest 112 | . 40 40 20 . 112 Shots Fired 67 | . 36 10 2 . 19 Gun 67 | . 36 10 2 . 19 Cannon . | . . . . . . Launcher . | . . . . . . Special . | . . . . . . Kinetic 56 | . 36 10 2 . 8 Thermal 9 | . . . . . 9 Explosive . | . . . . . . Electromagnetic 2 | . . . . . 2 Robot Hit Streak 14 | . 14 5 7 . 12 Robot Miss Streak 2 | . 2 1 . . 1 Penetration Max . | . . . . . . Secondary Targets 3 | . . 2 . . 1 Max Gunslinging Chain 1 | . . 1 . . 1 Shots Hit Robots 50 | . 25 7 4 . 14 Core Hits 23 | . 13 3 1 . 6 Critical Kills 1 | . 1 . . . . Critical Parts Destroyed . | . . . . . . Critical Strikes 1 | . 1 . . . . Destroy 1 | . 1 . . . . Melee Attacks 2 | . . . 2 . . Impact . | . . . . . . Slashing . | . . . . . . Piercing . | . . . . . . Sneak Attacks 2 | . . . 2 . . Combat Hostiles . | . . . . . . Follow-up Attacks . | . . . . . . Damage Inflicted 714 | . 330 96 32 . 256 Guns 686 | . 329 96 25 . 236 Cannons . | . . . . . . Explosions . | . . . . . . Melee . | . . . . . . Ramming 28 | . 1 . 7 . 20 Kinetic 552 | . 329 96 25 . 102 Thermal 100 | . . . . . 100 Explosive . | . . . . . . Electromagnetic 34 | . . . . . 34 Impact . | . . . . . . Slashing . | . . . . . . Piercing . | . . . . . . Highest Corruption 2 | . . . . . 2 Average Corruption 2 | . . . . . 2 Corruption Purged . | . . . . . . Corruption Blocked . | . . . . . . Overload Shots . | . . . . . . Overflow Damage . | . . . . . . Projectiles . | . . . . . . Explosions . | . . . . . . Melee . | . . . . . . Knockbacks . | . . . . . . Impact . | . . . . . . Kinetic . | . . . . . . Secondary . | . . . . . . Self-Inflicted Damage 3 | . . . . . 3 Shots . | . . . . . . Rammed 14 | . 1 . 1 . 12 Targets Rammed 15 | . 1 . 1 . 13 Kicked . | . . . . . . Crushed 1 | . . . . . 1 Highest Temperature 120 | . 20 . 6 . 120 Average Temperature 33 | . 7 . 6 . 41 Received Heat Transfer 1464 | . 117 . 111 39 1197 Siege Activations . | . . . . . . Robots Corrupted . | . . . . . . Combat Hostiles . | . . . . . . Parts Fried . | . . . . . . Impact Corruptions . | . . . . . . Robots Melted . | . . . . . . Combat Hostiles . | . . . . . . Parts Melted 1 | . . . . . 1 Heat Transferred 259 | . . . . . 259 Parts Sabotaged . | . . . . . . Parts Stolen . | . . . . . . Parts Stripped . | . . . . . . Power Chain Reactions . | . . . . . . Alert | -11 -10 -10 -9 -9 -8 ------- Run | Yrd Mat Min Mat Min Mat Peak Influence 150 | . 124 150 127 78 120 Initial 28 | . . 11 . 28 25 Average 40 | . 35 51 31 30 52 Maximum Alert Level . | . . . . . . Low Security (%) 100 | 100 100 100 100 100 100 Level 1 . | . . . . . . Level 2 . | . . . . . . Level 3 . | . . . . . . Level 4 . | . . . . . . Level 5 . | . . . . . . High Security . | . . . . . . Max Security . | . . . . . . Squads Dispatched 2 | . . . 2 . . Investigation 1 | . . . 1 . . Extermination . | . . . . . . Reinforcement 1 | . . . 1 . . Assault . | . . . . . . Garrison . | . . . . . . Intercept . | . . . . . . Searches Triggered . | . . . . . . Construction Impeded . | . . . . . . Haulers Reinforced . | . . . . . . Active Scanning Responses . | . . . . . . Cargo Convoy Interrupts . | . . . . . . Stealth | -11 -10 -10 -9 -9 -8 --------- Run | Yrd Mat Min Mat Min Mat Distress Signals 6 | . 3 . 2 . 1 Communications Jammed . | . . . . . . Distress Signals . | . . . . . . Times Spotted 62 | . 16 6 17 4 19 Peak Tracking Total 13 | . 5 3 8 4 13 Tactical Retreats 8 | . 4 . 1 1 2 Traps | -11 -10 -10 -9 -9 -8 ------- Run | Yrd Mat Min Mat Min Mat Traps Triggered 2 | . 1 . 1 . . Indirectly . | . . . . . . Trap Hack Attempts . | . . . . . . Triggered . | . . . . . . Disarmed . | . . . . . . Reprogrammed . | . . . . . . Reused . | . . . . . . Traps Extracted . | . . . . . . Installed . | . . . . . . Triggered . | . . . . . . Machines | -11 -10 -10 -9 -9 -8 ---------- Run | Yrd Mat Min Mat Min Mat Machines Disabled . | . . . . . . Max in Single Turn . | . . . . . . Machines Repaired . | . . . . . . Machines Dismantled . | . . . . . . Machines Sabotaged . | . . . . . . Overloaded Fab Kills . | . . . . . . Hacking | -11 -10 -10 -9 -9 -8 --------- Run | Yrd Mat Min Mat Min Mat Machines Accessed 3 | . 1 1 1 . . Terminals 2 | . 1 . 1 . . Fabricators . | . . . . . . Repair Stations . | . . . . . . Recycling Units . | . . . . . . Scanalyzers . | . . . . . . Garrison Access . | . . . . . . Total Hacks 7 | . 2 1 4 . . Successful 5 | . 2 1 2 . . Failed 2 | . . . 2 . . Catastrophic . | . . . . . . Database Lockouts . | . . . . . . Manual . | . . . . . . Terminals 6 | . 2 . 4 . . Fabricators . | . . . . . . Repair Stations . | . . . . . . Recycling Units . | . . . . . . Scanalyzers . | . . . . . . Garrison Access . | . . . . . . Terminal Hacks 5 | . 2 1 2 . . Open Door 1 | . . 1 . . . Alert Level 2 | . 1 . 1 . . Recall Assault 1 | . 1 . . . . Zone Layout 1 | . . . 1 . . Fabricator Hacks . | . . . . . . Repair Station Hacks . | . . . . . . Recycling Unit Hacks . | . . . . . . Scanalyzer . | . . . . . . Garrison Access Hacks . | . . . . . . Unauthorized Hacks . | . . . . . . Terminals . | . . . . . . Fabricators . | . . . . . . Repair Stations . | . . . . . . Recycling Units . | . . . . . . Scanalyzers . | . . . . . . Garrison Access . | . . . . . . Data Cores Recovered . | . . . . . . Used . | . . . . . . Hacking Detections 1 | . 1 . . . . Full Trace Events . | . . . . . . Feedback Events . | . . . . . . Feedback Blocked . | . . . . . . Robot Schematics Acquired . | . . . . . . Robots Built . | . . . . . . Authchips . | . . . . . . Time . | . . . . . . Total Robot Build Rating . | . . . . . . Part Schematics Acquired . | . . . . . . Parts Built . | . . . . . . Authchips . | . . . . . . Time . | . . . . . . Total Part Build Rating . | . . . . . . Parts Repaired . | . . . . . . Time . | . . . . . . Parts Recycled . | . . . . . . Recycled Matter . | . . . . . . Retrieved Matter . | . . . . . . Retrieved Components . | . . . . . . Parts Scanalyzed . | . . . . . . Part Schematics Acquired . | . . . . . . Parts Damaged . | . . . . . . Bothacking | -11 -10 -10 -9 -9 -8 ------------ Run | Yrd Mat Min Mat Min Mat Used RIF Installer . | . . . . . . Robots Hacked . | . . . . . . Non-combat . | . . . . . . Combat . | . . . . . . Robot Hacks Applied . | . . . . . . Relay Couplers Released . | . . . . . . Fabnet Peak Effective % . | . . . . . . Robots Rewired . | . . . . . . Allies Hacked . | . . . . . . Hacks Repelled . | . . . . . . Allies | -11 -10 -10 -9 -9 -8 -------- Run | Yrd Mat Min Mat Min Mat Total Allies 5 | . . 5 . . . Largest Group 4 | . . 4 3 . . Highest-Rated Group 68 | . . 68 63 . . Highest-Rated Ally 31 | . . 31 31 . . Total Orders . | . . . . . . Ally Attacks 65 | . . 6 59 . . Total Damage 665 | . . 46 619 . . Kills 14 | . . 3 11 . . Allies Corrupted . | . . . . . . Allies Melted . | . . . . . . Intel | -11 -10 -10 -9 -9 -8 ------- Run | Yrd Mat Min Mat Min Mat Robot Analysis Total . | . . . . . . Derelict Logs Recovered 1 | . . 1 . . . Drone Launches . | . . . . . . Drone Recoveries . | . . . . . . Exploration | -11 -10 -10 -9 -9 -8 ------------- Run | Yrd Mat Min Mat Min Mat Turns Passed 2563 | 87 563 865 720 49 279 Spaces Moved 1377 | 49 205 474 406 93 150 Core 33 | 2 . . . 1 30 Treads 1241 | 47 205 474 404 . 111 Legs 2 | . . . 2 . . Wheels . | . . . . . . Hover . | . . . . . . Flight 101 | . . . . 92 9 Fastest Speed 34 | 50 160 160 160 34 37 Average Speed 149 | 155 160 160 160 36 145 Slowest Speed 200 | 160 160 160 190 50 200 Overloaded Moves . | . . . . . . Propulsion Burnouts . | . . . . . . Robots Hopped 3 | . . . . 3 . Cave-ins Triggered . | . . . . . . Exploration Rate (%) 38 | 5 38 91 33 45 21 Regions Visited 5 Branch Regions 2 Pre-discovered Areas 1 | . . . . 1 . Known Exits Taken . | . . . . . . Unknown Exits Taken 5 | 1 1 1 1 1 . Scrap Searched 3 | . . 1 . 2 . Spaces Dug . | . . . . . . Terrain Destroyed . | . . . . . . Melee . | . . . . . . Projectile . | . . . . . . AOE . | . . . . . . Terrain Rammed . | . . . . . . Walls Destroyed . | . . . . . . Machines Disabled . | . . . . . . Actions | -11 -10 -10 -9 -9 -8 --------- Run | Yrd Mat Min Mat Min Mat Total 1798 | 58 404 572 473 105 186 Wait 319 | . 170 85 54 10 . Move 1366 | 48 204 473 405 86 150 Hop 3 | . . . . 3 . Pick Up 18 | 4 7 4 1 . 2 Fast Attach 11 | 3 1 . 2 . 5 Attach 12 | 3 . 1 2 3 3 Detach 2 | . . . 2 . . Swap 2 | . 1 1 . . . Drop 10 | . 2 3 2 3 . Fire 38 | . 18 5 2 . 13 Melee 2 | . . . 2 . . Ram 5 | . . . . . 5 Kick . | . . . . . . Crush 10 | . 1 . 1 . 8 Escape Stasis . | . . . . . . Rewire . | . . . . . . Trap . | . . . . . . Miscellaneous . | . . . . . . Route ------- -11/Scrapyard -10/Materials -10/Mines -9/Materials -9/Mines -8/Materials (discovered 2 exits: [*Fac] / Sto) History --------- Turn | Location | Event 2 | -11/Scrapyard | Met Revision 17 29 | -11/Scrapyard | Discovered new exit (range 16) 88 | -11/Scrapyard | Entered Materials 307 | -10/Materials | Build established: Mutant 607 | -10/Materials | Discovered new exit (range 16) 651 | -10/Materials | Entered Mines 769 | -10/Mines | Assisted by bots powering up and referring to "LRC-V3" 996 | -10/Mines | Discovered new exit (range 10) 1275 | -10/Mines | Met a Derelict who couldn't figure out how to use a Trap Extractor 1516 | -10/Mines | Entered Materials 1516 | -9/Materials | Accompanied by 3 allies 1516 | -9/Materials | Evolved 2 slots: Propulsion x2 1521 | -9/Materials | Led the pair of lost Derelicts to an unsafe place 2221 | -9/Materials | Discovered new exit (range 10) 2236 | -9/Materials | Entered Mines 2277 | -9/Mines | Discovered new exit (range 12) 2282 | -9/Mines | Learned location of Storage (-8) 2285 | -9/Mines | Entered Materials 2285 | -8/Materials | Evolved 2 slots: Propulsion x1, Utility x1 2286 | -8/Materials | Identified exit to Storage 2287 | -8/Materials | Lost 3 parts (1p2n) 2494 | -8/Materials | Lost 3 parts (2n1w) 2524 | -8/Materials | Core integrity fell below 50% 2541 | -8/Materials | Discovered new exit (range 11) 2554 | -8/Materials | Core integrity fell below 20% 2564 | -8/Materials | Destroyed by G-47 Trooper with Particle Gun Last Messages --------------- 02526_ Slammed into G-47 Trooper. 02527_ Arm. Treads destroyed. 02528_ Slammed into G-47 Trooper. 02529_ R-06 Scavenger collects Imp. Heat Sink. 02529_ Slammed into G-47 Trooper. 02531_ W-25 Informer distress signal alerts nearby ally. 02531_ Slammed into G-47 Trooper. 02532_ Slammed into W-25 Informer. 02537_ Critical hit (Burn: +37). 02538_ Minigun destroyed. 02541_ EXIT=FOUND 02544_ Acquired Arc Projector. 02550_ Critical hit (Burn: +37). 02559_ Arc Projector destroyed. 02559_ Critical hit (Smash). 02559_ Arc Projector destroyed. 02559_ Visual Processing Unit destroyed. 02559_ ECM Suite destroyed. 02559_ System corrupted by crushing effect (+2). 02562_ W-25 Informer destroyed. Map ----- +----------------------------------------------------+ | ???????????#! ## ## #? | | ???????????# # ##/############ | | ???????????###/#### | | ?????????????# | | ?????????????# #### ######## % | | ?????????????# #??##+###??????# ##### | | ?????????????#%#??????????????# #???? | | ?????????????#%#??????????????# #???? | | ?????????????#%#?????????????## ##??? | | ?????????????#%#?????????????# #??? | | ?????????????#%#?????????????# #### | | ?????????????#%#?????????????# | | ?????????????#%#?????????????# #### | | ????######???#%#?????????????######??? | | ???# ! ??#%#?????????????????????? | | ???# """??#%#?????????????????????? | | ???# [ """ ##!#########?????????????? | | ???# """ # % #?????????????? | | ???#= + ! #?????????????? | | ???# "" # #?????????????? | | ???# ! S"" ###] #?????????????? | | ???# "" ???# #?????????????? | | ???# ???#/% g#####?????????? | | ????###########/ #?????????? | | ????????# ggg [[#?????????? | | ????????# < @ b g ==#?????????? | | ????????#^ ==#?????????? | | ????????############k !!#?????????? | | ???????????????????# !!#?????????? | | ???????????????????# #####?????????? | | ???????????????????# #?????????????? | | ???????????????????# ?????????????? | | ???????????????????+ ????????????? | | ???????????????????# ???????????? | | ???????????????????# ####??????????? | | ???????????????????# #?????????????? | | ???????????????????# #?????????????? | | ???????????????????# +?????????????? | | ???????????????????# #?????????????? | | ???????????????????# #?????????????? | | ???????????????????# ??????????????? | | ???????????????????### ??????????????? | | ?????????????????????? ??????????????? | | ?????????????????????????????????????? | | ?????????????????????????????????????? | | ?????????????????????????????????????? | | ?????????????????????????????????????? | | ?????????????????????????????????????? | | ?????????????????????????????????????? | | ?????????????????????????????????????? | +----------------------------------------------------+ Best States ------------- Heat Dissipation 31 Energy Generation 14 Energy Capacity 250 Matter Stores 300 Matter Capacity 300 Sight Range 18 Terrain Scan Density 10 ECM Strength 1 Resistance: KI 20 Resistance: TH 20 Resistance: EX 20 Resistance: EM 20 Resistance: I 20 Resistance: S 20 Resistance: P 20 Evasion (%) 62 Recoil Reduction 2 Offensive Hacking 10 Item Schematics ----------------- None Robot Schematics ------------------ None Fabricated ------------ Nothing Alien Tech Used ----------------- None Achievements -------------- None Challenges ------------ None Game ------ Seed ThrowingQuantumBotcube Manual? 0 Play Time 00:24:14 Cumulative 2.5 hours Start 2024.10.26 @ 09:37:38 End 2024.10.26 @ 10:01:32 Sessions 1 Manual Loads 0 Difficulty Adventurer Special Mode None Game No. 10 Rogue 3 Adventurer 6 Explorer 1 Win Type - Total 0 Types 0/0/0/0/0/0/0/0/0 Lore% 1 Gallery% 5 Achievement% 6 Wizard Run 0 Options --------- Layout 0 ASCII 0 Keyboard 0 Movement Numpad Keybinds 0 Fullscreen 1 Font 24/Terminus Map View 113x50 Zoom Use 0% Tactical HUD 1 Map Filters NONE Filters NONE Steam 1 RUN: 25b7c6ad-ac5d-4586-97dc-81c64ac32cc3